Department family,Entity,Date,Expense type,Expense area,Supplier,Transaction number,Amount,Description
MOJ,MoJ HQ,03/04/19,5218102013 - EXP - PURCHASE OF GOODS/SERVICES - SUPPORT - SECURITY,10224043 - Transition,BRUNTONSPALL LTD,031,"$60,000.00",Cost of Technology Transformation Programme Security Monitoring Strategy
MOJ,MoJ HQ,09/04/19,5218102007 - EXP - PURCHASE OF GOODS/SERVICES - SUPPORT - APPLICATION DEVELOPMENT,10224107 - HMCTS Projects,Q-SOLUTION LTD,276,"$48,900.66",Cost of call off contract in respect of Information Technology work hosted over the internet
MOJ,MoJ HQ,05/04/19,5218102012 - EXP - PURCHASE OF GOODS/SERVICES - SUPPORT - OTHER,10224241 - SMXi,Q-SOLUTION LTD,280,"$101,317.34",Criminal Justice Secure Exchange for Testing Service 
MOJ,MoJ HQ,04/04/19,5218102012 - EXP - PURCHASE OF GOODS/SERVICES - SUPPORT - OTHER,10224044 - FITS Core,6POINT6 LTD,1768,"$117,480.00",Cost of technical support services for information technology network
MOJ,MoJ HQ,08/04/19,5218102002 - EXP - PURCHASE OF GOODS/SERVICES - SUPPORT - APPLICATION MAINTENANCE AND SUPPORT,10224411 - HMPPS Digital - BAU (P),6POINT6 LTD,1811,"$87,947.09",HM Prison & Probation Service Digital - Cost of providing Application Maintenance and Support services
MOJ,MoJ HQ,04/04/19,1141202002 - PPE - INFORMATION TECHNOLOGY (OWNED) - COST - ADDITIONS - Telecom Equipment,10224354 - SM - UKSC,UNILINK SOFTWARE LTD,8865,"$26,384.57","HM Prison & Probation Service Prisoner-Facing Self Service Software, and provision of kiosks"
MOJ,MoJ HQ,04/04/19,1141202002 - PPE - INFORMATION TECHNOLOGY (OWNED) - COST - ADDITIONS - Telecom Equipment,10224354 - SM - UKSC,UNILINK SOFTWARE LTD,8913,"$37,279.95","HM Prison & Probation Service Prisoner-Facing Self Service Software, and provision of kiosks"
MOJ,MoJ HQ,15/04/19,5218102002 - EXP - PURCHASE OF GOODS/SERVICES - SUPPORT - APPLICATION MAINTENANCE AND SUPPORT,10224262 - Software Licenses,UNILINK SOFTWARE LTD,8942,"$190,613.96",Digital Studio - Prisoner Self Service Kiosk
MOJ,MoJ HQ,08/04/19,5218602006 - EXP - PURCHASE OF GOODS/SERVICES - HOSTING - Hosting,10224221 - SM - NICTS,SYSCON JUSTICE SYSTEMS CANADA LTD,012886,"$180,533.17",Digital Live Support Services Costs for Prison Services
MOJ,MoJ HQ,08/04/19,5218602006 - EXP - PURCHASE OF GOODS/SERVICES - HOSTING - Hosting,10224221 - SM - NICTS,SYSCON JUSTICE SYSTEMS CANADA LTD,012888,"$84,858.50",Digital Live Support Services Costs for Prison Services
MOJ,MoJ HQ,10/04/19,5218602006 - EXP - PURCHASE OF GOODS/SERVICES - HOSTING - Hosting,10224221 - SM - NICTS,SYSCON JUSTICE SYSTEMS CANADA LTD,012918,"$180,533.17",Digital Live Support Services Costs for Prison Services
MOJ,MoJ HQ,10/04/19,5218602006 - EXP - PURCHASE OF GOODS/SERVICES - HOSTING - Hosting,10224221 - SM - NICTS,SYSCON JUSTICE SYSTEMS CANADA LTD,012929,"$101,221.19",Digital Live Support Services Costs for Prison Services
MOJ,MoJ HQ,04/04/19,5218102007 - EXP - PURCHASE OF GOODS/SERVICES - SUPPORT - APPLICATION DEVELOPMENT,10224107 - HMCTS Projects,EGRESS SOFTWARE TECHNOLOGIES LTD,16357,"$28,200.00",Cost of call off contract in respect of Information Technology work hosted over the internet
MOJ,MoJ HQ,29/04/19,5218102002 - EXP - PURCHASE OF GOODS/SERVICES - SUPPORT - APPLICATION MAINTENANCE AND SUPPORT,10224247 - SMXi - CJS Secure E-mail,EGRESS SOFTWARE TECHNOLOGIES LTD,16488,"$215,400.00",Framework Agreement On Going Charges for IT services provided over the internet for Criminal Justice Secure Mail
MOJ,MoJ HQ,11/04/19,5218102007 - EXP - PURCHASE OF GOODS/SERVICES - SUPPORT - APPLICATION DEVELOPMENT,10224411 - HMPPS Digital - BAU (P),TOLOMY LTD,20405,"$79,800.00",HM Prison & Probation Service Digital - Cost of Amazon Web Services  Development Test and Migration
MOJ,MoJ HQ,10/04/19,5218602006 - EXP - PURCHASE OF GOODS/SERVICES - HOSTING - Hosting,10224411 - HMPPS Digital - BAU (P),TOLOMY LTD,20406,"$97,553.52",HM Prison & Probation Service Digital - Cost of Amazon Web Services - Migration
MOJ,MoJ HQ,15/04/19,5218602006 - EXP - PURCHASE OF GOODS/SERVICES - HOSTING - Hosting,10224411 - HMPPS Digital - BAU (P),TOLOMY LTD,20407,"$862,697.78",HM Prison & Probation Service Digital - Cost of providing information technology over the Internet 
MOJ,MoJ HQ,03/04/19,5218102007 - EXP - PURCHASE OF GOODS/SERVICES - SUPPORT - APPLICATION DEVELOPMENT,10224411 - HMPPS Digital - BAU (P),I2N LTD,190111,"$132,000.00",HM Prison & Probation Service Digital - Cost of providing Application Maintenance and Support services
MOJ,MoJ HQ,15/04/19,5218102007 - EXP - PURCHASE OF GOODS/SERVICES - SUPPORT - APPLICATION DEVELOPMENT,10224411 - HMPPS Digital - BAU (P),I2N LTD,190420,"$132,000.00",HM Prison & Probation Service Digital - Cost of providing Application Maintenance and Support services
MOJ,MoJ HQ,01/04/19,5218102010 - EXP - PURCHASE OF GOODS/SERVICES - SUPPORT - NETWORKS VVI,10224254 - Networks - Video & Voice,VODAFONE LIMITED,336860,"$2,155,347.68",Voice & Video Integration charges
MOJ,MoJ HQ,01/04/19,5218102003 - EXP - PURCHASE OF GOODS/SERVICES - SUPPORT - NETWORKS WAN/LAN,10224257 - Networks - WAN & LAN,VODAFONE LIMITED,337999,"$1,325,420.47",Local Area Network Variable charges
MOJ,MoJ HQ,02/04/19,5218102003 - EXP - PURCHASE OF GOODS/SERVICES - SUPPORT - NETWORKS WAN/LAN,10224257 - Networks - WAN & LAN,VODAFONE LIMITED,338000,"$675,979.28",Wide Area Network Service Variable Charges
MOJ,MoJ HQ,02/04/19,5218702003 - EXP - PURCHASE OF GOODS/SERVICES - NETWORKING - Networks WAN/LAN,10224257 - Networks - WAN & LAN,VODAFONE LIMITED,338001,"$152,253.07",National ICT Service Wide Area Network Fixed Charges - Prisons
MOJ,MoJ HQ,01/04/19,5218102003 - EXP - PURCHASE OF GOODS/SERVICES - SUPPORT - NETWORKS WAN/LAN,10224257 - Networks - WAN & LAN,VODAFONE LIMITED,338002,"$125,614.22",Future Offender Management National Infrastructure Local Area Network Service Charges
MOJ,MoJ HQ,02/04/19,5218102003 - EXP - PURCHASE OF GOODS/SERVICES - SUPPORT - NETWORKS WAN/LAN,10224257 - Networks - WAN & LAN,VODAFONE LIMITED,338003,"$369,746.54",Future Offender Management National Infrastructure Wide Area Network charges
MOJ,MoJ HQ,01/04/19,5218102003 - EXP - PURCHASE OF GOODS/SERVICES - SUPPORT - NETWORKS WAN/LAN,10224257 - Networks - WAN & LAN,VODAFONE LIMITED,338026,"$279,107.84",National ICT Service Wide Area Network Fixed Charges - Prisons
MOJ,MoJ HQ,02/04/19,5218702003 - EXP - PURCHASE OF GOODS/SERVICES - NETWORKING - Networks WAN/LAN,10224257 - Networks - WAN & LAN,VODAFONE LTD,338027,"$132,871.52",National ICT Service Charges for provision and support of Local Area Network - Prisons
MOJ,MoJ HQ,02/04/19,5218102010 - EXP - PURCHASE OF GOODS/SERVICES - SUPPORT - NETWORKS VVI,10224254 - Networks - Video & Voice,VODAFONE LIMITED,338029,"$516,786.66",Voice & Video Integration charges
MOJ,MoJ HQ,01/04/19,5218102010 - EXP - PURCHASE OF GOODS/SERVICES - SUPPORT - NETWORKS VVI,10224254 - Networks - Video & Voice,VODAFONE LIMITED,338030,"$552,810.05",Vodafone Charge for Active Enterprise Video Devices
MOJ,MoJ HQ,04/04/19,5218102010 - EXP - PURCHASE OF GOODS/SERVICES - SUPPORT - NETWORKS VVI,10224254 - Networks - Video & Voice,VODAFONE LIMITED,338031,"$49,226.22",Variable Charges for Vodafone Telephony Services
MOJ,MoJ HQ,01/04/19,5218102010 - EXP - PURCHASE OF GOODS/SERVICES - SUPPORT - NETWORKS VVI,10224254 - Networks - Video & Voice,VODAFONE LIMITED,338032,"$229,321.45",Fixed Charges for Vodafone Telephony Services
MOJ,MoJ HQ,01/04/19,5218102010 - EXP - PURCHASE OF GOODS/SERVICES - SUPPORT - NETWORKS VVI,10224254 - Networks - Video & Voice,VODAFONE LIMITED,338035,"$96,220.12",National Information Communication Technology Fixed charges - Prisons
MOJ,MoJ HQ,01/04/19,5218102010 - EXP - PURCHASE OF GOODS/SERVICES - SUPPORT - NETWORKS VVI,10224254 - Networks - Video & Voice,VODAFONE LIMITED,338036,"$36,228.06",Direct Exchange Telephone line charges
MOJ,MoJ HQ,01/04/19,5218102010 - EXP - PURCHASE OF GOODS/SERVICES - SUPPORT - NETWORKS VVI,10224254 - Networks - Video & Voice,VODAFONE LIMITED,338037,"$151,158.00",National Information Communication Technology Variable charges - Prisons
MOJ,MoJ HQ,30/04/19,5218102003 - EXP - PURCHASE OF GOODS/SERVICES - SUPPORT - NETWORKS WAN/LAN,10224257 - Networks - WAN & LAN,VODAFONE LIMITED,339054,"$1,344,324.18",Local Area Network Service Variable Charges
MOJ,MoJ HQ,30/04/19,5218702003 - EXP - PURCHASE OF GOODS/SERVICES - NETWORKING - Networks WAN/LAN,10224257 - Networks - WAN & LAN,VODAFONE LIMITED,339057,"$170,225.58",National ICT Service Wide Area Network Fixed Charges - Prisons
MOJ,MoJ HQ,30/04/19,5218102003 - EXP - PURCHASE OF GOODS/SERVICES - SUPPORT - NETWORKS WAN/LAN,10224257 - Networks - WAN & LAN,VODAFONE LIMITED,339059,"$123,598.43",Future Offender Management National Infrastructure Local Area Network Service Charges
MOJ,MoJ HQ,30/04/19,5218102003 - EXP - PURCHASE OF GOODS/SERVICES - SUPPORT - NETWORKS WAN/LAN,10224257 - Networks - WAN & LAN,VODAFONE LIMITED,339060,"$274,041.62",National ICT Service Wide Area Network Fixed Charges - Prisons
MOJ,MoJ HQ,04/04/19,5218702003 - EXP - PURCHASE OF GOODS/SERVICES - NETWORKING - Networks WAN/LAN,10224043 - Transition,VODAFONE LIMITED,483271,"$171,600.00",Technology Transformation Programme Local Area Network Integration 
MOJ,MoJ HQ,04/04/19,5218702003 - EXP - PURCHASE OF GOODS/SERVICES - NETWORKING - Networks WAN/LAN,10224043 - Transition,VODAFONE LIMITED,483938,"$120,744.00",Technology Transformation Programme Local Area Network Integration 
MOJ,MoJ HQ,08/04/19,5218702003 - EXP - PURCHASE OF GOODS/SERVICES - NETWORKING - Networks WAN/LAN,10224257 - Networks - WAN & LAN,VODAFONE LTD,484376,"$326,336.15",National ICT Service Charges for provision and support of Local Area Network - Prisons
MOJ,MoJ HQ,01/04/19,5218102010 - EXP - PURCHASE OF GOODS/SERVICES - SUPPORT - NETWORKS VVI,10224254 - Networks - Video & Voice,VODAFONE LIMITED,484378,"($247,662.47)",Voice & Video Integration charges
MOJ,MoJ HQ,01/04/19,5218102003 - EXP - PURCHASE OF GOODS/SERVICES - SUPPORT - NETWORKS WAN/LAN,10224257 - Networks - WAN & LAN,VODAFONE LIMITED,484567,"$29,947.37",Variable Charges for Local/Network Area Network Service
MOJ,MoJ HQ,03/04/19,1481200000 - IA - POA & AUC - COST - ADDITIONS,10224354 - SM - UKSC,VODAFONE LIMITED,484575,"$74,246.17",HM Prison & Probation Service Kiosk Cabling
MOJ,MoJ HQ,02/04/19,5218102010 - EXP - PURCHASE OF GOODS/SERVICES - SUPPORT - NETWORKS VVI,10224254 - Networks - Video & Voice,VODAFONE LIMITED,484579,"$406,701.97",Voice & Video Integration charges
MOJ,MoJ HQ,01/04/19,5218102010 - EXP - PURCHASE OF GOODS/SERVICES - SUPPORT - NETWORKS VVI,10224254 - Networks - Video & Voice,VODAFONE LIMITED,484693,"$36,228.06",Direct Exchange Telephone line charges
MOJ,MoJ HQ,24/04/19,5218102012 - EXP - PURCHASE OF GOODS/SERVICES - SUPPORT - OTHER,10224043 - Transition,VODAFONE LIMITED,484747,"$68,682.68",Technology Transformation Programme - HM Prisons & Probation
MOJ,MoJ HQ,01/04/19,5218102003 - EXP - PURCHASE OF GOODS/SERVICES - SUPPORT - NETWORKS WAN/LAN,10224257 - Networks - WAN & LAN,VODAFONE LIMITED,484750,"$122,125.81",Local Area Network Service Variable Charges
MOJ,MoJ HQ,01/04/19,5218102003 - EXP - PURCHASE OF GOODS/SERVICES - SUPPORT - NETWORKS WAN/LAN,10224257 - Networks - WAN & LAN,VODAFONE LIMITED,484755,"$122,125.81",Local Area Network Service Variable Charges
MOJ,MoJ HQ,04/04/19,5218102010 - EXP - PURCHASE OF GOODS/SERVICES - SUPPORT - NETWORKS VVI,10224254 - Networks - Video & Voice,VODAFONE LIMITED,484769,"$71,764.03",National Information Communication Technology Variable charges - Prisons
MOJ,MoJ HQ,01/04/19,5218102010 - EXP - PURCHASE OF GOODS/SERVICES - SUPPORT - NETWORKS VVI,10224254 - Networks - Video & Voice,VODAFONE LIMITED,484779,"($1,907,685.22)",Voice & Video Integration charges
MOJ,MoJ HQ,25/04/19,5218702003 - EXP - PURCHASE OF GOODS/SERVICES - NETWORKING - Networks WAN/LAN,10224257 - Networks - WAN & LAN,VODAFONE LIMITED,484964,"$118,925.70",National ICT Service Wide Area Network Legacy Charges - Prisons
MOJ,MoJ HQ,01/04/19,5218102010 - EXP - PURCHASE OF GOODS/SERVICES - SUPPORT - NETWORKS VVI,10224254 - Networks - Video & Voice,VODAFONE LIMITED,485130,"($247,662.47)",Voice & Video Integration charges
MOJ,MoJ HQ,16/04/19,5218702010 - EXP - PURCHASE OF GOODS/SERVICES - NETWORKING - Networks VVI,10224043 - Transition,VODAFONE LIMITED,485417,"$289,301.15",Technology Transformation Programme Transition Support
MOJ,MoJ HQ,30/04/19,5218102003 - EXP - PURCHASE OF GOODS/SERVICES - SUPPORT - NETWORKS WAN/LAN,10224257 - Networks - WAN & LAN,VODAFONE LIMITED,485444,"$122,125.81",Local Area Network Service Variable Charges
MOJ,MoJ HQ,30/04/19,5218102003 - EXP - PURCHASE OF GOODS/SERVICES - SUPPORT - NETWORKS WAN/LAN,10224257 - Networks - WAN & LAN,VODAFONE LIMITED,485445,"$26,679.67",Variable Charges for Local/Network Area Network Service
MOJ,MoJ HQ,11/04/19,5218102008 - EXP - PURCHASE OF GOODS/SERVICES - SUPPORT - LICENCES,10224262 - Software Licenses,ORACLE CORPORATION U K LTD,1693449,"$209,654.96",Cost of Licenses for Technical Support Services
MOJ,MoJ HQ,11/04/19,5218102008 - EXP - PURCHASE OF GOODS/SERVICES - SUPPORT - LICENCES,10224262 - Software Licenses,ORACLE CORPORATION U K LTD,1693452,"$83,988.98",Cost of Licenses for Technical Support Services
MOJ,MoJ HQ,18/04/19,5218102008 - EXP - PURCHASE OF GOODS/SERVICES - SUPPORT - LICENCES,10224262 - Software Licenses,ORACLE CORPORATION U K LTD,1694185,"$1,996,717.88",Cost of Licenses for Technical Support Services
MOJ,MoJ HQ,18/04/19,5218102008 - EXP - PURCHASE OF GOODS/SERVICES - SUPPORT - LICENCES,10224262 - Software Licenses,ORACLE CORPORATION U K LTD,1694207,"$612,787.48",Cost of Licenses for Technical Support Services
MOJ,MoJ HQ,11/04/19,5218102008 - EXP - PURCHASE OF GOODS/SERVICES - SUPPORT - LICENCES,10224262 - Software Licenses,TRUSTMARQUE SOLUTIONS LTD,2282517,"$174,132.36",Cost of Licenses for Internet based Information Technology Services
MOJ,MoJ HQ,04/04/19,5218102002 - EXP - PURCHASE OF GOODS/SERVICES - SUPPORT - APPLICATION MAINTENANCE AND SUPPORT,10224411 - HMPPS Digital - BAU (P),TRUSTMARQUE SOLUTIONS LTD,2283208,"$85,920.00",HM Prison & Probation Service Digital - Cost of providing Application Maintenance and Support services
MOJ,MoJ HQ,16/04/19,5218102008 - EXP - PURCHASE OF GOODS/SERVICES - SUPPORT - LICENCES,10224030 - Strategy & Architecture,TRUSTMARQUE SOLUTIONS LTD,2283281,"$142,536.78",Subscription cost for 660 community of computer software developers
MOJ,MoJ HQ,24/04/19,5218102002 - EXP - PURCHASE OF GOODS/SERVICES - SUPPORT - APPLICATION MAINTENANCE AND SUPPORT,10224262 - Software Licenses,TRUSTMARQUE SOLUTIONS LTD,2283566,"$76,912.50",Cost of License Renewal
MOJ,MoJ HQ,03/04/19,5218102007 - EXP - PURCHASE OF GOODS/SERVICES - SUPPORT - APPLICATION DEVELOPMENT,10224355 - SM - Other ALBs,ENTSERV UK LTD,6074847,"$38,768.26",Cost of information technology software for Parole Board
MOJ,MoJ HQ,24/04/19,5218102012 - EXP - PURCHASE OF GOODS/SERVICES - SUPPORT - OTHER,10224221 - SM - NICTS,ENTSERV UK LTD,6075521,"$407,657.75",Fixed costs of End User Computing for Prison and Probation Service
MOJ,MoJ HQ,23/04/19,5218702003 - EXP - PURCHASE OF GOODS/SERVICES - NETWORKING - Networks WAN/LAN,10224221 - SM - NICTS,ENTSERV UK LTD,6075532,"$208,294.26",Cost of Secure Internet Connectivity for Prison and Probation Service
MOJ,MoJ HQ,23/04/19,5218102012 - EXP - PURCHASE OF GOODS/SERVICES - SUPPORT - OTHER,10224221 - SM - NICTS,ENTSERV UK LTD,6075537,"$68,171.51",Cost of Email and Mobile Messaging Service for Prison and Probation Service
MOJ,MoJ HQ,23/04/19,5218102012 - EXP - PURCHASE OF GOODS/SERVICES - SUPPORT - OTHER,10224221 - SM - NICTS,ENTSERV UK LTD,6075538,"$265,657.27",Criminal Justice Secure Exchange for Testing Service 
MOJ,MoJ HQ,23/04/19,5218102012 - EXP - PURCHASE OF GOODS/SERVICES - SUPPORT - OTHER,10224221 - SM - NICTS,ENTSERV UK LTD,6075554,"$1,197,340.19",Variable costs of End User Computing for Prison and Probation Service
MOJ,MoJ HQ,08/04/19,5218102004 - EXP - PURCHASE OF GOODS/SERVICES - SUPPORT - SIAM,10224241 - SMXi,FUJITSU SERVICES LTD,8099648,"$669,514.80",Criminal Justice Secure Exchange Operations Charges 
MOJ,MoJ HQ,03/04/19,5218102012 - EXP - PURCHASE OF GOODS/SERVICES - SUPPORT - OTHER,10224241 - SMXi,SOPRA STERIA LTD,100143087,"$291,130.80",Criminal Justice Secure Exchange Service Management Charges 
MOJ,MoJ HQ,05/04/19,5218102013 - EXP - PURCHASE OF GOODS/SERVICES - SUPPORT - SECURITY,10224253 - Security - Protective Monitoring,QINETIQ LTD,117055831,"$43,153.67",Cost of providing IT security Monitoring reports
MOJ,MoJ HQ,25/04/19,5218102013 - EXP - PURCHASE OF GOODS/SERVICES - SUPPORT - SECURITY,10224253 - Security - Protective Monitoring,QINETIQ LTD,117056015,"$43,153.67",Cost of providing IT security Monitoring reports
MOJ,MoJ HQ,03/04/19,5217102004 - EXP - PURCHASE OF GOODS/SERVICES - OFFICE RELATED - Reprographics,10224256 - EUC - Print,XEROX U K LTD,900184817,"$75,561.07",Future HM Probation Variable Run & Maintain Print charges
MOJ,MoJ HQ,30/04/19,5218102012 - EXP - PURCHASE OF GOODS/SERVICES - SUPPORT - OTHER,10224256 - EUC - Print,XEROX U K LTD,900184919,"$80,574.52",Prison and Probation Service Print On Going Charges
MOJ,MoJ HQ,03/04/19,5218202004 - EXP - PURCHASE OF GOODS/SERVICES - TELECOMS - Purchase - mobile,10224259 - EUC - Core,EVERYTHING EVERYWHERE LTD,960122298,"$2,817,612.00",Bulk purchase of iphones as part of workfoce mordenisation of HM Prison and Probation Service
MOJ,MoJ HQ,05/04/19,5218202004 - EXP - PURCHASE OF GOODS/SERVICES - TELECOMS - Purchase - mobile,10224213 - Telecoms,EVERYTHING EVERYWHERE LTD,01282871388,"$27,471.27",Cost of EE Workplace Mobile Phones
MOJ,MoJ HQ,05/04/19,5218202004 - EXP - PURCHASE OF GOODS/SERVICES - TELECOMS - Purchase - mobile,10224213 - Telecoms,EVERYTHING EVERYWHERE LTD,01282872394,"$34,660.20",Cost of EE Workplace Mobile Phones
MOJ,MoJ HQ,05/04/19,5218702003 - EXP - PURCHASE OF GOODS/SERVICES - NETWORKING - Networks WAN/LAN,10224043 - Transition,ATOS IT SERVICES UK LTD,5584288304,"$60,000.00",Technology Transformation Programme Transition Support
MOJ,MoJ HQ,25/04/19,5218102012 - EXP - PURCHASE OF GOODS/SERVICES - SUPPORT - OTHER,10224202 - SM - Atos,ATOS IT SERVICES UK LTD,5584292737,"$144,931.93",Single Tender Exit Contract Stranded Services - Ongoing Costs
MOJ,MoJ HQ,26/04/19,5218402001 - EXP - PURCHASE OF GOODS/SERVICES - END USER SOFTWARE AND HARDWARE - Laptops,10224202 - SM - Atos,ATOS IT SERVICES UK LTD,5584292896,"$118,517.64",Single Tender Exit Contract ICT End User Computing Fixed  Charges
MOJ,MoJ HQ,03/04/19,5218602006 - EXP - PURCHASE OF GOODS/SERVICES - HOSTING - Hosting,10224202 - SM - Atos,ATOS IT SERVICES UK LTD,5584292946,"($30,000.00)",Single Tender Exit Contract - Data Centres On Going Costs refund
MOJ,MoJ HQ,03/04/19,5218102004 - EXP - PURCHASE OF GOODS/SERVICES - SUPPORT - SIAM,10224202 - SM - Atos,ATOS IT SERVICES UK LTD,5584292947,"($276,000.00)",Single Tender Exit Contract/Service Integration & Management On Going Costs Refund
MOJ,MoJ HQ,03/04/19,5218702003 - EXP - PURCHASE OF GOODS/SERVICES - NETWORKING - Networks WAN/LAN,10224202 - SM - Atos,ATOS IT SERVICES UK LTD,5584292949,"($84,000.00)",Single Tender Exit Contract ICT Networks Wide/Local Area Network Variable Charges Refund
MOJ,MoJ HQ,26/04/19,5218402001 - EXP - PURCHASE OF GOODS/SERVICES - END USER SOFTWARE AND HARDWARE - Laptops,10224202 - SM - Atos,ATOS IT SERVICES UK LTD,5584293217,"($89,222.66)",Single Tender Exit Contract ICT End User Computing Fixed  Charges Refund
MOJ,MoJ HQ,25/04/19,5218102012 - EXP - PURCHASE OF GOODS/SERVICES - SUPPORT - OTHER,10224202 - SM - Atos,ATOS IT SERVICES UK LTD,5584295757,"$144,931.93",Single Tender Exit Contract Stranded Services - Ongoing Costs
MOJ,MoJ HQ,23/04/19,5218102012 - EXP - PURCHASE OF GOODS/SERVICES - SUPPORT - OTHER,10224043 - Transition,ATOS IT SERVICES UK LTD,5584297701,"$27,340.09",Technology Transformation Programme End User Computing 
MOJ,MoJ HQ,03/04/19,5218702003 - EXP - PURCHASE OF GOODS/SERVICES - NETWORKING - Networks WAN/LAN,10224202 - SM - Atos,ATOS IT SERVICES UK LTD,5584298563,"$94,003.73",Single Tender Exit Contract ICT Networks Wide/Local Area Network Variable Charges
MOJ,MoJ HQ,03/04/19,5218702003 - EXP - PURCHASE OF GOODS/SERVICES - NETWORKING - Networks WAN/LAN,10224202 - SM - Atos,ATOS IT SERVICES UK LTD,5584298567,"$74,566.80",Single Tender Exit Contract ICT Networks Wide/Local Area Network Variable Charges
MOJ,MoJ HQ,03/04/19,5218102004 - EXP - PURCHASE OF GOODS/SERVICES - SUPPORT - SIAM,10224202 - SM - Atos,ATOS IT SERVICES UK LTD,5584298571,"$164,689.36",Single Tender Exit Contract/Service Integration & Management On Going Costs
MOJ,MoJ HQ,25/04/19,5218102012 - EXP - PURCHASE OF GOODS/SERVICES - SUPPORT - OTHER,10224202 - SM - Atos,ATOS IT SERVICES UK LTD,5584298575,"$144,931.93",Single Tender Exit Contract Stranded Services - Ongoing Costs
MOJ,MoJ HQ,03/04/19,5218102012 - EXP - PURCHASE OF GOODS/SERVICES - SUPPORT - OTHER,10224202 - SM - Atos,ATOS IT SERVICES UK LTD,5584298576,"$212,962.18",Single Tender Exit Contract ICT Legal Aid Agency On Going Costs
MOJ,MoJ HQ,03/04/19,5218102004 - EXP - PURCHASE OF GOODS/SERVICES - SUPPORT - SIAM,10224202 - SM - Atos,ATOS IT SERVICES UK LTD,5584298794,"($66,000.00)",Single Tender Exit Contract/Service Integration & Management On Going Costs
MOJ,MoJ HQ,03/04/19,5218702003 - EXP - PURCHASE OF GOODS/SERVICES - NETWORKING - Networks WAN/LAN,10224202 - SM - Atos,ATOS IT SERVICES UK LTD,5584298796,"($84,000.00)",Single Tender Exit Contract ICT Networks Wide/Local Area Network Variable Charges
MOJ,MoJ HQ,03/04/19,5218102004 - EXP - PURCHASE OF GOODS/SERVICES - SUPPORT - SIAM,10224202 - SM - Atos,ATOS IT SERVICES UK LTD,5584298799,"($66,000.00)",Single Tender Exit Contract/Service Integration & Management On Going Costs
MOJ,MoJ HQ,03/04/19,5218702003 - EXP - PURCHASE OF GOODS/SERVICES - NETWORKING - Networks WAN/LAN,10224202 - SM - Atos,ATOS IT SERVICES UK LTD,5584298801,"($84,000.00)",Single Tender Exit Contract ICT Networks Wide/Local Area Network Variable Charges
MOJ,MoJ HQ,03/04/19,5218102012 - EXP - PURCHASE OF GOODS/SERVICES - SUPPORT - OTHER,10224043 - Transition,ATOS IT SERVICES UK LTD,5584300209,"$27,930.00",Technology Transformation Programme End User Computing 
MOJ,MoJ HQ,30/04/19,5218402001 - EXP - PURCHASE OF GOODS/SERVICES - END USER SOFTWARE AND HARDWARE - Laptops,10224259 - EUC - Core,ATOS IT SERVICES UK LTD,5584300897,"$110,976.00",End User Computing Laptop Charges
MOJ,MoJ HQ,30/04/19,5218402001 - EXP - PURCHASE OF GOODS/SERVICES - END USER SOFTWARE AND HARDWARE - Laptops,10224259 - EUC - Core,ATOS IT SERVICES UK LTD,5584300898,"$48,552.00",End User Computing Laptop Charges
MOJ,MoJ HQ,30/04/19,5218402005 - EXP - PURCHASE OF GOODS/SERVICES - END USER SOFTWARE AND HARDWARE - Desktops,10224259 - EUC - Core,ATOS IT SERVICES UK LTD,5584300900,"$723,748.50",End User Computing Desktop Charges
MOJ,MoJ HQ,30/04/19,5218402005 - EXP - PURCHASE OF GOODS/SERVICES - END USER SOFTWARE AND HARDWARE - Desktops,10224259 - EUC - Core,ATOS IT SERVICES UK LTD,5584300901,"$106,800.00",End User Computing Desktop Charges
MOJ,MoJ HQ,30/04/19,5218402005 - EXP - PURCHASE OF GOODS/SERVICES - END USER SOFTWARE AND HARDWARE - Desktops,10224259 - EUC - Core,ATOS IT SERVICES UK LTD,5584300907,"$26,564.11",End User Computing Desktop Charges
MOJ,MoJ HQ,30/04/19,5218402005 - EXP - PURCHASE OF GOODS/SERVICES - END USER SOFTWARE AND HARDWARE - Desktops,10224259 - EUC - Core,ATOS IT SERVICES UK LTD,5584300931,"$25,499.05",End User Computing Desktop Charges
MOJ,MoJ HQ,30/04/19,5218402005 - EXP - PURCHASE OF GOODS/SERVICES - END USER SOFTWARE AND HARDWARE - Desktops,10224259 - EUC - Core,ATOS IT SERVICES UK LTD,5584300946,"$78,973.50",End User Computing Desktop Charges
MOJ,MoJ HQ,30/04/19,5218102012 - EXP - PURCHASE OF GOODS/SERVICES - SUPPORT - OTHER,10224259 - EUC - Core,ATOS IT SERVICES UK LTD,5584300948,"$32,359.82",End User Computing Adhoc Charges
MOJ,MoJ HQ,30/04/19,5218102012 - EXP - PURCHASE OF GOODS/SERVICES - SUPPORT - OTHER,10224259 - EUC - Core,ATOS IT SERVICES UK LTD,5584300950,"$38,383.20",End User Computing Adhoc Charges
MOJ,MoJ HQ,30/04/19,5218402001 - EXP - PURCHASE OF GOODS/SERVICES - END USER SOFTWARE AND HARDWARE - Laptops,10224259 - EUC - Core,ATOS IT SERVICES UK LTD,5584300975,"$79,542.05",End User Computing Laptop Charges
MOJ,MoJ HQ,30/04/19,5218402005 - EXP - PURCHASE OF GOODS/SERVICES - END USER SOFTWARE AND HARDWARE - Desktops,10224259 - EUC - Core,ATOS IT SERVICES UK LTD,5584300977,"$64,696.30",End User Computing Desktop Charges
MOJ,MoJ HQ,26/04/19,5218702003 - EXP - PURCHASE OF GOODS/SERVICES - NETWORKING - Networks WAN/LAN,10224043 - Transition,ATOS IT SERVICES UK LTD,5584300997,"$32,533.20",Technology Transformation Programme Security Related - Firewall Swap
MOJ,MoJ HQ,30/04/19,5218402005 - EXP - PURCHASE OF GOODS/SERVICES - END USER SOFTWARE AND HARDWARE - Desktops,10224259 - EUC - Core,ATOS IT SERVICES UK LTD,5584301019,"$26,375.06",End User Computing Desktop Charges
MOJ,MoJ HQ,30/04/19,5218402005 - EXP - PURCHASE OF GOODS/SERVICES - END USER SOFTWARE AND HARDWARE - Desktops,10224259 - EUC - Core,ATOS IT SERVICES UK LTD,5584301027,"$236,914.63",End User Computing Desktop Charges
MOJ,MoJ HQ,08/04/19,5218200001 - EXP - PURCHASE OF GOODS/SERVICES - TELECOMS - DATA COMMUNICATIONS,10224043 - Transition,ATOS IT SERVICES UK LTD,5584301047,"$64,185.60",Technology Transformation Programme End User Computing 
MOJ,MoJ HQ,05/04/19,5218102012 - EXP - PURCHASE OF GOODS/SERVICES - SUPPORT - OTHER,10224043 - Transition,ATOS IT SERVICES UK LTD,5584301054,"$394,736.86",Technology Transformation Programme End User Computing 
MOJ,MoJ HQ,04/04/19,5218402005 - EXP - PURCHASE OF GOODS/SERVICES - END USER SOFTWARE AND HARDWARE - Desktops,10224202 - SM - Atos,ATOS IT SERVICES UK LTD,5584301719,"$65,445.65",Single Tender Exit Contract ICT End User Computing Fixed  Charges
MOJ,MoJ HQ,04/04/19,5218702003 - EXP - PURCHASE OF GOODS/SERVICES - NETWORKING - Networks WAN/LAN,10224202 - SM - Atos,ATOS IT SERVICES UK LTD,5584301739,"$80,146.08",Single Tender Exit Contract ICT Networks Wide/Local Area Network Variable Charges
MOJ,MoJ HQ,05/04/19,5218702003 - EXP - PURCHASE OF GOODS/SERVICES - NETWORKING - Networks WAN/LAN,10224043 - Transition,ATOS IT SERVICES UK LTD,5584301744,"($60,000.00)",Technology Transformation Programme Transition Support
MOJ,MoJ HQ,04/04/19,5218602006 - EXP - PURCHASE OF GOODS/SERVICES - HOSTING - Hosting,10224202 - SM - Atos,ATOS IT SERVICES UK LTD,5584301751,"$26,140.90",Single Tender Exit Contract - Data Centres On Going Costs
MOJ,MoJ HQ,04/04/19,5218402005 - EXP - PURCHASE OF GOODS/SERVICES - END USER SOFTWARE AND HARDWARE - Desktops,10224202 - SM - Atos,ATOS IT SERVICES UK LTD,5584301754,"$155,519.47",Single Tender Exit Contract ICT End User Computing Fixed  Charges
MOJ,MoJ HQ,03/04/19,5218702003 - EXP - PURCHASE OF GOODS/SERVICES - NETWORKING - Networks WAN/LAN,10224202 - SM - Atos,ATOS IT SERVICES UK LTD,5584301756,"$79,945.03",Single Tender Exit Contract ICT Networks Wide/Local Area Network Variable Charges
MOJ,MoJ HQ,03/04/19,5218102004 - EXP - PURCHASE OF GOODS/SERVICES - SUPPORT - SIAM,10224202 - SM - Atos,ATOS IT SERVICES UK LTD,5584301758,"$154,000.46",Single Tender Exit Contract/Service Integration & Management On Going Costs
MOJ,MoJ HQ,25/04/19,5218102012 - EXP - PURCHASE OF GOODS/SERVICES - SUPPORT - OTHER,10224202 - SM - Atos,ATOS IT SERVICES UK LTD,5584301763,"$85,795.91",Single Tender Exit Contract Stranded Services - Ongoing Costs
MOJ,MoJ HQ,03/04/19,5218102012 - EXP - PURCHASE OF GOODS/SERVICES - SUPPORT - OTHER,10224202 - SM - Atos,ATOS IT SERVICES UK LTD,5584301764,"$212,962.18",Single Tender Exit Contract ICT Legal Aid Agency On Going Costs
MOJ,MoJ HQ,30/04/19,5218102001 - EXP - PURCHASE OF GOODS/SERVICES - SUPPORT - LAPTOPS,10224259 - EUC - Core,ATOS IT SERVICES UK LTD,5584301882,"$298,532.16",End User Computing Futures Run and Maintain Charges
MOJ,MoJ HQ,30/04/19,5218102001 - EXP - PURCHASE OF GOODS/SERVICES - SUPPORT - LAPTOPS,10224259 - EUC - Core,ATOS IT SERVICES UK LTD,5584301883,"$329,640.94",End User Computing Futures Run and Maintain Charges
MOJ,MoJ HQ,18/04/19,5218402005 - EXP - PURCHASE OF GOODS/SERVICES - END USER SOFTWARE AND HARDWARE - Desktops,10224259 - EUC - Core,ATOS IT SERVICES UK LTD,5584302242,"$25,500.06",Future Offender Management Information Technology End User Computing Run and Maintain Charges
MOJ,MoJ HQ,30/04/19,5218402005 - EXP - PURCHASE OF GOODS/SERVICES - END USER SOFTWARE AND HARDWARE - Desktops,10224202 - SM - Atos,ATOS IT SERVICES UK LTD,5584303113,"$75,554.78",Single Tender Exit Contract ICT End User Computing Fixed  Charges
MOJ,MoJ HQ,23/04/19,5218102012 - EXP - PURCHASE OF GOODS/SERVICES - SUPPORT - OTHER,10224044 - FITS Core,CAPITA BUSINESS SERVICES LTD,6003883044,"$149,688.00",Technology Transformation Programme cost of Transition and Exit Services
MOJ,MoJ HQ,23/04/19,5218102012 - EXP - PURCHASE OF GOODS/SERVICES - SUPPORT - OTHER,10224044 - FITS Core,CAPITA BUSINESS SERVICES LTD,6003883045,"$171,082.80",Technology Transformation Programme cost of Transition and Exit Services
MOJ,MoJ HQ,23/04/19,5218102012 - EXP - PURCHASE OF GOODS/SERVICES - SUPPORT - OTHER,10224044 - FITS Core,CAPITA BUSINESS SERVICES LTD,6003883049,"$59,724.00",Technology Transformation Programme cost of Transition and Exit Services
MOJ,MoJ HQ,02/04/19,5218102006 - EXP - PURCHASE OF GOODS/SERVICES - SUPPORT - HOSTING,10224030 - Strategy & Architecture,AMAZON WEB SERICES INC,01-SM004,"$279,694.90",Cost of Amazon Internet based SERVICES 
MOJ,MoJ HQ,11/04/19,5218102007 - EXP - PURCHASE OF GOODS/SERVICES - SUPPORT - APPLICATION DEVELOPMENT,10224411 - HMPPS Digital - BAU (P),SOLIRIUS CONSULTING LTD,1376-SPGSHF1-019,"$33,813.00",HM Prison & Probation Service Digital - Cost of providing Application Maintenance and Support services
MOJ,MoJ HQ,11/04/19,5218102007 - EXP - PURCHASE OF GOODS/SERVICES - SUPPORT - APPLICATION DEVELOPMENT,10224411 - HMPPS Digital - BAU (P),SOLIRIUS CONSULTING LTD,1377-SPGSHF1-020,"$37,229.40",HM Prison & Probation Service Digital - Cost of providing Application Maintenance and Support services
MOJ,MoJ HQ,10/04/19,5218102004 - EXP - PURCHASE OF GOODS/SERVICES - SUPPORT - SIAM,10224107 - HMCTS Projects,BADENOCH & CLARK,A25893/00,"$144,053.60",Statement of Work for Service Integration and Management (SIAM) Technology Services
MOJ,MoJ HQ,10/04/19,5218102004 - EXP - PURCHASE OF GOODS/SERVICES - SUPPORT - SIAM,10224107 - HMCTS Projects,BADENOCH & CLARK,A26198,"$342,928.97",Statement of Work for Common Technology Services Central Transformation 
MOJ,MoJ HQ,10/04/19,5218102004 - EXP - PURCHASE OF GOODS/SERVICES - SUPPORT - SIAM,10224107 - HMCTS Projects,BADENOCH & CLARK,A26357,"$420,406.70",Statement of Work for Service Integration and Management (SIAM) Technology Services
MOJ,MoJ HQ,10/04/19,5218102004 - EXP - PURCHASE OF GOODS/SERVICES - SUPPORT - SIAM,10224107 - HMCTS Projects,BADENOCH & CLARK,A26362,"$85,608.58",Statement of Work for Common Technology Services Central Transformation 
MOJ,MoJ HQ,05/04/19,5218200001 - EXP - PURCHASE OF GOODS/SERVICES - TELECOMS - DATA COMMUNICATIONS,10224221 - SM - NICTS,BT PAYPHONES,AI5506/46,"$85,386.00",Cost of One Year Framework Extension for Prison and Probation Service
MOJ,MoJ HQ,01/04/19,1141202002 - PPE - INFORMATION TECHNOLOGY (OWNED) - COST - ADDITIONS - Telecom Equipment,10224354 - SM - UKSC,BT PAYPHONES,AI5506/47,"$1,569,220.57",HM Prison & Probation Service in cell telephony Project
MOJ,MoJ HQ,01/04/19,1141202002 - PPE - INFORMATION TECHNOLOGY (OWNED) - COST - ADDITIONS - Telecom Equipment,10224354 - SM - UKSC,BT PAYPHONES,AI5506/49,"$1,317,910.20",HM Prison & Probation Service in cell telephony Project
MOJ,MoJ HQ,01/04/19,1141202002 - PPE - INFORMATION TECHNOLOGY (OWNED) - COST - ADDITIONS - Telecom Equipment,10224354 - SM - UKSC,BT PAYPHONES,AI5506/50,"$68,400.00",HM Prison & Probation Service in cell telephony Project
MOJ,MoJ HQ,01/04/19,1141202002 - PPE - INFORMATION TECHNOLOGY (OWNED) - COST - ADDITIONS - Telecom Equipment,10224354 - SM - UKSC,BT PAYPHONES,AI5506/51,"$85,365.14",HM Prison & Probation Service in cell telephony Project
MOJ,MoJ HQ,01/04/19,1141202002 - PPE - INFORMATION TECHNOLOGY (OWNED) - COST - ADDITIONS - Telecom Equipment,10224354 - SM - UKSC,BT PAYPHONES,AI5506/52,"$931,800.77",HM Prison & Probation Service in cell telephony Project
MOJ,MoJ HQ,01/04/19,1141202002 - PPE - INFORMATION TECHNOLOGY (OWNED) - COST - ADDITIONS - Telecom Equipment,10224354 - SM - UKSC,BT PAYPHONES,AI5506/53,"$4,963,958.23",HM Prison & Probation Service in cell telephony Project
MOJ,MoJ HQ,01/04/19,1141202002 - PPE - INFORMATION TECHNOLOGY (OWNED) - COST - ADDITIONS - Telecom Equipment,10224354 - SM - UKSC,BT PAYPHONES,AI5506/54,"$89,818.31",HM Prison & Probation Service in cell telephony Project
MOJ,MoJ HQ,05/04/19,1141202002 - PPE - INFORMATION TECHNOLOGY (OWNED) - COST - ADDITIONS - Telecom Equipment,10224354 - SM - UKSC,BT PAYPHONES,AI5506/55,"$346,933.97",HM Prison & Probation Service in cell telephony Project
MOJ,MoJ HQ,05/04/19,1141202002 - PPE - INFORMATION TECHNOLOGY (OWNED) - COST - ADDITIONS - Telecom Equipment,10224354 - SM - UKSC,BT PAYPHONES,AI5506/56,"$218,733.82",HM Prison & Probation Service in cell telephony Project
MOJ,MoJ HQ,02/04/19,5218102002 - EXP - PURCHASE OF GOODS/SERVICES - SUPPORT - APPLICATION MAINTENANCE AND SUPPORT,10224044 - FITS Core,CGI IT UK LTD,GB014003932,"($351,001.20)",Technology Transformation Programme cost of Application Management Services
MOJ,MoJ HQ,15/04/19,1171250000 - PPE - POA & AUC (OWNED) - COST - ADDITIONS - OTHER,10224044 - FITS Core,CGI IT UK LTD,GB014009444,"$1,260,777.60",Technology Transformation Programme cost of Hosting Variation Agreement
MOJ,MoJ HQ,18/04/19,1171250000 - PPE - POA & AUC (OWNED) - COST - ADDITIONS - OTHER,10224044 - FITS Core,CGI IT UK LTD,GB014014829,"$480,589.20",Technology Transformation Programme cost of Hosting Variation Agreement
MOJ,MoJ HQ,08/04/19,5218102006 - EXP - PURCHASE OF GOODS/SERVICES - SUPPORT - HOSTING,10224258 - Hosting,CGI IT UK LTD,GB014015281,"$642,060.00",Hosting service charges
MOJ,MoJ HQ,08/04/19,5218102002 - EXP - PURCHASE OF GOODS/SERVICES - SUPPORT - APPLICATION MAINTENANCE AND SUPPORT,10224260 - AMS-HQ/HMCTS,CGI IT UK LTD,GB014015291,"$1,609,682.84",Application Maintenance & Support monthly Service Charges
MOJ,MoJ HQ,11/04/19,5218102007 - EXP - PURCHASE OF GOODS/SERVICES - SUPPORT - APPLICATION DEVELOPMENT,10224043 - Transition,CGI IT UK LTD,GB014016205,"$195,885.96",Technology Transformation Programme End User Computing 
MOJ,MoJ HQ,25/04/19,5218102008 - EXP - PURCHASE OF GOODS/SERVICES - SUPPORT - LICENCES,10224244 - SMXi - IBM,CGI IT UK LTD,GB014016236,"$128,217.60",Criminal Justice Secure Mail on going ICT costs 
MOJ,MoJ HQ,11/04/19,5218102002 - EXP - PURCHASE OF GOODS/SERVICES - SUPPORT - APPLICATION MAINTENANCE AND SUPPORT,10224260 - AMS-HQ/HMCTS,CGI IT UK LTD,GB014016238,"$1,883,727.06",Application Maintenance & Support monthly Service Charges
MOJ,MoJ HQ,15/04/19,1171250000 - PPE - POA & AUC (OWNED) - COST - ADDITIONS - OTHER,10224044 - FITS Core,CGI IT UK LTD,GB014016298,"$205,200.00",Technology Transformation Programme cost of Hosting Variation Agreement
MOJ,MoJ HQ,23/04/19,5218102008 - EXP - PURCHASE OF GOODS/SERVICES - SUPPORT - LICENCES,10224262 - Software Licenses,ENTCORP UK LTD,IGBSA68627,"$301,206.34",Cost of Licenses for Information Technology
MOJ,MoJ HQ,05/04/19,5218102004 - EXP - PURCHASE OF GOODS/SERVICES - SUPPORT - SIAM,10224241 - SMXi,SOPRA BUSINESS CONSULTING LTD,INV01032019,"$54,000.00",Criminal Justice Secure Exchange Service Management Charges 
MOJ,MoJ HQ,25/04/19,5218102008 - EXP - PURCHASE OF GOODS/SERVICES - SUPPORT - LICENCES,10224213 - Telecoms,MOBICHORD INC,INV-0570,"$390,000.00",Cost of Management tool to analyse and manage the MoJ telephony estate.
MOJ,MoJ HQ,02/04/19,1141202001 - PPE - INFORMATION TECHNOLOGY (OWNED) - COST - ADDITIONS - Computers,10224107 - HMCTS Projects,XMA LTD,KP84920,"$130,432.80",Charges for Information Technology hardware - Laptops
MOJ,MoJ HQ,02/04/19,1141202001 - PPE - INFORMATION TECHNOLOGY (OWNED) - COST - ADDITIONS - Computers,10224107 - HMCTS Projects,XMA LTD,KQ12912,"$259,561.27",Charges for Information Technology hardware - Laptops
MOJ,MoJ HQ,01/04/19,5218202004 - EXP - PURCHASE OF GOODS/SERVICES - TELECOMS - Purchase - mobile,10224107 - HMCTS Projects,XMA LTD,KQ29189,"$78,168.60",Charges for Communication Assets - Mobile Phones
MOJ,MoJ HQ,09/04/19,1141202001 - PPE - INFORMATION TECHNOLOGY (OWNED) - COST - ADDITIONS - Computers,10224107 - HMCTS Projects,XMA LTD,KQ29307,"$157,480.44",Charges for Information Technology hardware - Laptops
MOJ,MoJ HQ,02/04/19,5218202004 - EXP - PURCHASE OF GOODS/SERVICES - TELECOMS - Purchase - mobile,10224107 - HMCTS Projects,XMA LTD,KQ29402,"$493,119.66",Charges for Communication Assets - Mobile Phones
MOJ,MoJ HQ,01/04/19,5218402001 - EXP - PURCHASE OF GOODS/SERVICES - END USER SOFTWARE AND HARDWARE - Laptops,10224259 - EUC - Core,XMA LTD,KQ29651,"$36,256.92",End User Computing Laptop Charges
MOJ,MoJ HQ,03/04/19,5218402001 - EXP - PURCHASE OF GOODS/SERVICES - END USER SOFTWARE AND HARDWARE - Laptops,10224259 - EUC - Core,XMA LTD,KQ32875,"$32,271.67",End User Computing Laptop Charges
MOJ,MoJ HQ,03/04/19,1141202001 - PPE - INFORMATION TECHNOLOGY (OWNED) - COST - ADDITIONS - Computers,10224107 - HMCTS Projects,XMA LTD,KQ35590,"$340,429.61",Charges for Information Technology hardware - Laptops
MOJ,MoJ HQ,09/04/19,5218102002 - EXP - PURCHASE OF GOODS/SERVICES - SUPPORT - APPLICATION MAINTENANCE AND SUPPORT,10224411 - HMPPS Digital - BAU (P),LA INTERNATIONAL COMPUTER CONSULTANTS LTD,LA543371,"$41,053.80",HM Prison & Probation Service Digital - Cost of providing Application Maintenance and Support services
MOJ,MoJ HQ,25/04/19,5218102012 - EXP - PURCHASE OF GOODS/SERVICES - SUPPORT - OTHER,10224306 - Infrastructure & Platform,LA INTERNATIONAL COMPUTER CONSULTANTS LTD,LA543387,"$45,158.74",Cost of Service delivery to Business As Usual Service operation
MOJ,MoJ HQ,04/04/19,5218102012 - EXP - PURCHASE OF GOODS/SERVICES - SUPPORT - OTHER,10224043 - Transition,THROUGH TECHNOLOGY LTD,MOJ-03-003,"$256,355.04",Technology Transformation Programme Managed Service  
MOJ,MoJ HQ,08/04/19,5218102002 - EXP - PURCHASE OF GOODS/SERVICES - SUPPORT - APPLICATION MAINTENANCE AND SUPPORT,10224411 - HMPPS Digital - BAU (P),BEAUMONT COLSON,NOMS/ND006/19,"$195,804.00",HM Prison & Probation Service Digital - Cost of providing Application Maintenance and Support services
MOJ,MoJ HQ,08/04/19,5218102002 - EXP - PURCHASE OF GOODS/SERVICES - SUPPORT - APPLICATION MAINTENANCE AND SUPPORT,10224411 - HMPPS Digital - BAU (P),BEAUMONT COLSON,NOMS/ND007/19,"$195,048.00",HM Prison & Probation Service Digital - Cost of providing Application Maintenance and Support services
MOJ,MoJ HQ,02/04/19,1141200000 - PPE - INFORMATION TECHNOLOGY (OWNED) - COST - ADDITIONS,10224256 - EUC - Print,XEROX U K LTD,PSMI-9000108,"$1,199,898.00",Purchase Cost of new Printing equipment for HM Courts & Tribunal Services
MOJ,MoJ HQ,12/04/19,5218102002 - EXP - PURCHASE OF GOODS/SERVICES - SUPPORT - APPLICATION MAINTENANCE AND SUPPORT,10224411 - HMPPS Digital - BAU (P),DIFRENT LTD,TTG-0004,"$91,980.00",HM Prison & Probation Service Digital - Cost of providing Application Maintenance and Support services
MOJ,MoJ HQ,12/04/19,5218102002 - EXP - PURCHASE OF GOODS/SERVICES - SUPPORT - APPLICATION MAINTENANCE AND SUPPORT,10224411 - HMPPS Digital - BAU (P),DIFRENT LTD,TTG-0005,"$105,487.93",HM Prison & Probation Service Digital - Cost of providing Application Maintenance and Support services
MOJ,MoJ HQ,25/04/19,5218702010 - EXP - PURCHASE OF GOODS/SERVICES - NETWORKING - Networks VVI,10224204 - SM - Vodafone,VODAFONE LIMITED,UK10/032019/8429,"$31,471.99",Prison Court Video Link Crown Courts/Other Courts Monthly Charges 
MOJ,MoJ HQ,04/04/19,5218102008 - EXP - PURCHASE OF GOODS/SERVICES - SUPPORT - LICENCES,10224262 - Software Licenses,BOTTOMLINE TECHNOLOGIES LTD,UKINV-106574,"$504,000.00",Cost of Software Licenses
MOJ,MoJ HQ,04/04/19,5215102018 - EXP - PURCHASE OF GOODS/SERVICES - ACCOMMODATION & BLDNG MANAGEMENT - Building Fees and Professional Services,10222032 - Estates Strategy (Prog),TURNER & TOWNSEND PROJECT MANAGEMENT LTD,586488,"$31,800.02",Reconfiguration Project relating to 102 Petty France:Professional fees 
MOJ,MoJ HQ,25/04/19,5224100011 - EXP - PURCHASE OF GOODS/SERVICES - NON-PO INVOICES PENDING REALLOCATION,10222143 - 5 WELLINGTON PLACE -LEEDS,CBRE LTD,831362,"$101,421.34","Service Charge  at 5 Wellington place, Leeds"
MOJ,MoJ HQ,25/04/19,5224100011 - EXP - PURCHASE OF GOODS/SERVICES - NON-PO INVOICES PENDING REALLOCATION,10222143 - 5 WELLINGTON PLACE -LEEDS,CBRE LTD,852045,"$58,481.50","Service Charge  at 5 Wellington place, Leeds"
MOJ,MoJ HQ,18/04/19,5224100011 - EXP - PURCHASE OF GOODS/SERVICES - NON-PO INVOICES PENDING REALLOCATION,10222143 - 5 WELLINGTON PLACE -LEEDS,CBRE LTD,865961,"$58,481.50","Service Charge  at 5 Wellington place, Leeds"
MOJ,MoJ HQ,09/04/19,5224100011 - EXP - PURCHASE OF GOODS/SERVICES - NON-PO INVOICES PENDING REALLOCATION,10222143 - 5 WELLINGTON PLACE -LEEDS,CBRE LTD,875168,"$45,631.20","Service Charge  at 5 Wellington place, Leeds"
MOJ,MoJ HQ,24/04/19,5224100011 - EXP - PURCHASE OF GOODS/SERVICES - NON-PO INVOICES PENDING REALLOCATION,10222143 - 5 WELLINGTON PLACE -LEEDS,CBRE LTD,878167,"$36,352.90","Service Charge  at 5 Wellington place, Leeds"
MOJ,MoJ HQ,24/04/19,5224100011 - EXP - PURCHASE OF GOODS/SERVICES - NON-PO INVOICES PENDING REALLOCATION,10222143 - 5 WELLINGTON PLACE -LEEDS,CBRE LTD,878168,"$49,510.48","Service Charge  at 5 Wellington place, Leeds"
MOJ,MoJ HQ,12/04/19,1816902056 - CA-OTHER RECEIVABLES-DISBURSEMENTS ON BEHALF OF OGD,10222145 - MoJ Estates Cluster,WOMBLE BOND DICKINSON  UK LLP,3366761,"$55,722.60",Legal Services costs for the MoJ Estates Cluster
MOJ,MoJ HQ,08/04/19,1816902056 - CA-OTHER RECEIVABLES-DISBURSEMENTS ON BEHALF OF OGD,10222145 - MoJ Estates Cluster,WOMBLE BOND DICKINSON  UK LLP,3375310,"$92,114.60",Legal Services costs for the MoJ Estates Cluster
MOJ,MoJ HQ,25/04/19,5215102000 - EXP - PURCHASE OF GOODS/SERVICES - ACCOMMODATION & BLDNG MANAGEMENT - Management fee,10222132 - MoJ Headquarters,KIER FACILITIES SERVICES LTD,10151843,"$501,881.59", Facilities Management: Contract Management Fees for Home Office
MOJ,MoJ HQ,03/04/19,5215100003 - EXP - PURCHASE OF GOODS/SERVICES -ACCOMM & BLDNG MGMT - MAINTENANCE & REPAIRS,10222222 - FFM HMPPS,KIER FACILITIES SERVICES LTD,10153151,"$181,365.63",FM Facilities contract payments for Probation Estates
MOJ,MoJ HQ,24/04/19,5222300000 - EXP - PURCHASE OF GOODS/SERVICES - WATER,10222238 - FFM Home Office - 709200 � Reactive,KIER FACILITIES SERVICES LTD,10153433,"$52,407.64",Utilities costs incurred on behalf of Home Office
MOJ,MoJ HQ,23/04/19,5222100000 - EXP - PURCHASE OF GOODS/SERVICES - ELECTRICITY,10222221 - FFM MoJ HQ,KIER FACILITIES SERVICES LTD,10156468,"$200,575.89",Utility costs: MoJ HQ
MOJ,MoJ HQ,24/04/19,5215102000 - EXP - PURCHASE OF GOODS/SERVICES - ACCOMMODATION & BLDNG MANAGEMENT - Management fee,10222221 - FFM MoJ HQ,KIER FACILITIES SERVICES LTD,10157115,"$581,249.02", Facilities Management: Contract Management Fees
MOJ,MoJ HQ,30/04/19,5222100000 - EXP - PURCHASE OF GOODS/SERVICES - ELECTRICITY,10222222 - FFM HMPPS,KIER FACILITIES SERVICES LTD,10158996,"$290,234.95",Utility payments for Probation Estates
MOJ,MoJ HQ,09/04/19,5222200000 - EXP - PURCHASE OF GOODS/SERVICES - GAS,10222011 - Sustainable Development Secretariat,CORONA ENERGY RETAIL 2 LTD,13825529,"$98,932.68",Utility charge: Sustainable Development Secretariat
MOJ,MoJ HQ,30/04/19,5222502001 - EXP - PURCHASE OF GOODS/SERVICES - OTHER ENERGY/UTILITIES/WASTE COST - Other Fuels,10222012 - Carbon Reduction Charges,ARCADIS LLP,14059105,"$28,518.58",Carbon Reduction Charges
MOJ,MoJ HQ,05/04/19,5217102004 - EXP - PURCHASE OF GOODS/SERVICES - OFFICE RELATED - Reprographics,10222132 - MoJ Headquarters,XEROX U K LTD,900184785,"$108,770.13",MoJ Print Room services at 102 Petty France
MOJ,MoJ HQ,23/04/19,5215100001 - EXP - PURCHASE OF GOODS/SERVICES - ACCOMMODATION & BLDNG MANAGEMENT - OFFICE CLEANING,10222221 - FFM MoJ HQ,OCS GROUP UK LTD,5000359016,"$1,760,219.04",Utility costs: MoJ HQ
MOJ,MoJ HQ,03/04/19,5218302011 - EXP - PURCHASE OF GOODS/SERVICES - IT MANAGEMENT AND CHANGE - Exit Management,10222017 - MoJ National,ATOS IT SERVICES UK LTD,5584298117,"$47,626.80",Telecommunication/Telephony costs
MOJ,MoJ HQ,11/04/19,5218402005 - EXP - PURCHASE OF GOODS/SERVICES - END USER SOFTWARE AND HARDWARE - Desktops,10222017 - MoJ National,ATOS IT SERVICES UK LTD,5584300057,"$96,896.40",Telecommunication/Telephony costs
MOJ,MoJ HQ,03/04/19,5218302011 - EXP - PURCHASE OF GOODS/SERVICES - IT MANAGEMENT AND CHANGE - Exit Management,10222017 - MoJ National,ATOS IT SERVICES UK LTD,5584300207,"$30,592.80",Telecommunication/Telephony costs
MOJ,MoJ HQ,23/04/19,5215102000 - EXP - PURCHASE OF GOODS/SERVICES - ACCOMMODATION & BLDNG MANAGEMENT - Management fee,10222220 - FFM Client unit and shared costs,OCS GROUP UK LTD,7000021325,"($75,759.40)", Facilities Management: Contract Management Fees 
MOJ,MoJ HQ,04/04/19,1816902056 - CA-OTHER RECEIVABLES-DISBURSEMENTS ON BEHALF OF OGD,10222139 - Department for Education,HM LAND REGISTRY,7300056000,"$141,435.17",Property Expenditure incurred on behalf of Department for Education
MOJ,MoJ HQ,02/04/19,5211102008 - EXP - PURCHASE OF GOODS/SERVICES - OTHER - Laundry,10222222 - FFM HMPPS,SODEXO LTD,9900462478,"$77,702.48",Utility charges: HMPPS Probation Estate
MOJ,MoJ HQ,16/04/19,1816902056 - CA-OTHER RECEIVABLES-DISBURSEMENTS ON BEHALF OF OGD,10222139 - Department for Education,GOVERNMENT PROPERTY AGENCY GPA,00000001/573,"$61,139.75",Property Expenditure incurred on behalf of Department for Education
MOJ,MoJ HQ,03/04/19,5211200000 - Exp - Purchase Of Goods/Services - Consultancy,10221016 - Project Delivery - SES,ARCADIS LLP,14055547-ARCADIS,"$28,185.00",Advisory Services cost incurred on behalf of Department for Education
MOJ,MoJ HQ,26/04/19,5215102000 - EXP - PURCHASE OF GOODS/SERVICES - ACCOMMODATION & BLDNG MANAGEMENT - Management fee,10221018 - Future FM Project - SES,KELLOGG BROWN ROOT LTD,1903MOJ046,"$455,681.89",MoJ Provision of Future FM Assurance Services - Helpdesk & CAFM (Computer Aided Facilities Management)
MOJ,MoJ HQ,26/04/19,5215102000 - EXP - PURCHASE OF GOODS/SERVICES - ACCOMMODATION & BLDNG MANAGEMENT - Management fee,10221018 - Future FM Project - SES,KELLOGG BROWN ROOT LTD,1903MOJ047,"$195,551.50",MoJ Provision of Future FM Assurance Services - Helpdesk & CAFM (Computer Aided Facilities Management)
MOJ,MoJ HQ,04/04/19,5224100011 - EXP - PURCHASE OF GOODS/SERVICES - NON-PO INVOICES PENDING REALLOCATION,10222115 - Clive House,CITY OF WESTMINSTER,420187493/2019-20,"$34,927.10",Clive House Business rates
MOJ,MoJ HQ,04/04/19,5224100011 - EXP - PURCHASE OF GOODS/SERVICES - NON-PO INVOICES PENDING REALLOCATION,10222132 - MoJ Headquarters,CITY OF WESTMINSTER,420188214/2019-20,"$41,000.00",102 Petty France Business rates
MOJ,MoJ HQ,11/04/19,5222502001 - EXP - PURCHASE OF GOODS/SERVICES - OTHER ENERGY/UTILITIES/WASTE COST - Other Fuels,10222011 - Sustainable Development Secretariat,AMEY METERING LTD,90734712-AMEYMETERING,"$45,154.18",Utility charge: Sustainable Development Secretariat
MOJ,MoJ HQ,05/04/19,1816902056 - CA-OTHER RECEIVABLES-DISBURSEMENTS ON BEHALF OF OGD,"10222141 - Ministry of Housing, Communities and Local Government",A YOUNG,AVISONYOUNG-MARCH2019-MHCLG,"$54,056.40","Property Expenditure incurred on behalf Ministry of Housing, Communities and Local Government"
MOJ,MoJ HQ,08/04/19,1816902056 - CA-OTHER RECEIVABLES-DISBURSEMENTS ON BEHALF OF OGD,10222139 - Department for Education,BEES & HONEY PARTNERSHIP LTD,BEES&HONEY-1691,"$27,362.40",Property Expenditure incurred on behalf of Department for Education
MOJ,MoJ HQ,26/04/19,1816902056 - CA-OTHER RECEIVABLES-DISBURSEMENTS ON BEHALF OF OGD,10222139 - Department for Education,BEES & HONEY PARTNERSHIP LTD,BEES&HONEY-INV1699,"$28,801.20",Property Expenditure incurred on behalf of Department for Education
MOJ,MoJ HQ,12/04/19,1816902056 - CA-OTHER RECEIVABLES-DISBURSEMENTS ON BEHALF OF OGD,"10222141 - Ministry of Housing, Communities and Local Government",GVA GRIMLEY LTD,DCLG-04/2019,"$34,815.17","Property Expenditure incurred on behalf of Ministry of Housing, Communities and Local Government"
MOJ,MoJ HQ,25/04/19,1816902056 - CA-OTHER RECEIVABLES-DISBURSEMENTS ON BEHALF OF OGD,"10222141 - Ministry of Housing, Communities and Local Government",BILFINGER GVA,DCLG-17042019,"$376,221.00","Property Expenditure incurred on behalf of Ministry of Housing, Communities and Local Government"
MOJ,MoJ HQ,12/04/19,1816902056 - CA-OTHER RECEIVABLES-DISBURSEMENTS ON BEHALF OF OGD,10222139 - Department for Education,GVA GRIMLEY LTD,DFE-04/2019,"$28,206.46",Property Expenditure incurred on behalf of Department for Education
MOJ,MoJ HQ,25/04/19,1816902056 - CA-OTHER RECEIVABLES-DISBURSEMENTS ON BEHALF OF OGD,10222139 - Department for Education,BILFINGER GVA,DFE-170419,"$506,874.00",Property Expenditure incurred on behalf of Department for Education
MOJ,MoJ HQ,25/04/19,1816902056 - CA-OTHER RECEIVABLES-DISBURSEMENTS ON BEHALF OF OGD,10222140 - Department for International Trade,BILFINGER GVA,DIT-170419,"$158,510.00",Property Expenditure incurred on behalf of Department for International Trade
MOJ,MoJ HQ,23/04/19,1816902056 - CA-OTHER RECEIVABLES-DISBURSEMENTS ON BEHALF OF OGD,10222140 - Department for International Trade,METHODS BUSINESS AND DIGITAL TECHNOLOGY LTD,DIT-METHODS-MARCH2019,"$27,789.47",Expenditure incurred on behalf of Department for International Trade - professional fees
MOJ,MoJ HQ,02/04/19,5215100003 - EXP - PURCHASE OF GOODS/SERVICES -ACCOMM & BLDNG MGMT - MAINTENANCE & REPAIRS,10222222 - FFM HMPPS,INTERSERVE (FACILITIES MANAGEMENT)LTD,FACMI030963,"$399,802.85",Maintenance costs: HMPPS Probation Estate
MOJ,MoJ HQ,24/04/19,5222300000 - EXP - PURCHASE OF GOODS/SERVICES - WATER,10222230 - FFM DfE,INTERSERVE (FACILITIES MANAGEMENT)LTD,FACMI031904,"$238,801.93",Utility costs incurred on behalf of Department for Education
MOJ,MoJ HQ,24/04/19,5215100003 - EXP - PURCHASE OF GOODS/SERVICES -ACCOMM & BLDNG MGMT - MAINTENANCE & REPAIRS,10222236 - FFM CPS,INTERSERVE (FACILITIES MANAGEMENT)LTD,FACMI031908,"$480,230.65",Maintenance costs incurred on behalf of Crown Prosecution Service
MOJ,MoJ HQ,30/04/19,5222100000 - EXP - PURCHASE OF GOODS/SERVICES - ELECTRICITY,10222222 - FFM HMPPS,INTERSERVE (FACILITIES MANAGEMENT)LTD,FACMI032051,"$41,817.74",Utility payments for Probation Estates
MOJ,MoJ HQ,12/04/19,1816902056 - CA-OTHER RECEIVABLES-DISBURSEMENTS ON BEHALF OF OGD,10222139 - Department for Education,HIGHWAYS ENGLAND COMPANY LTD,INVS-61474-61475-61476,"$69,405.61",Maintenance costs incurred on behalf of Department for Education
MOJ,MoJ HQ,16/04/19,5217102006 - EXP - PURCHASE OF GOODS/SERVICES - OFFICE RELATED - Purchase of Machinery and Equipment (not capitalised),10222017 - MoJ National,SENATOR INTERNATIONAL LTD,S01518730,"$90,717.86",Purchase of office furniture 
MOJ,MoJ HQ,29/04/19,5218102007 - EXP - PURCHASE OF GOODS/SERVICES - SUPPORT - APPLICATION DEVELOPMENT,10222017 - MoJ National,KEYTREE LTD,UK4-373-2019,"$82,134.72",Telecommunication Subscriptions
MOJ,MoJ HQ,10/04/19,5212102007 - EXP - PURCHASE OF GOODS/SERVICES - PERSONNEL RELATED - Staff Health and Safety,"10221061 - Reward, Policy and Employment Relations",HEALTH MANAGEMENT LTD,C400614,"($54,970.34)",Ill Health retirement contract monthly charge
MOJ,MoJ HQ,10/04/19,5212102007 - EXP - PURCHASE OF GOODS/SERVICES - PERSONNEL RELATED - Staff Health and Safety,"10221061 - Reward, Policy and Employment Relations",HEALTH MANAGEMENT LTD,I505288,"$58,818.26",Ill Health retirement contract monthly charge
MOJ,MoJ HQ,02/04/19,5212102007 - EXP - PURCHASE OF GOODS/SERVICES - PERSONNEL RELATED - Staff Health and Safety,"10221061 - Reward, Policy and Employment Relations",HEALTH MANAGEMENT LTD,INV507927,"$49,471.80",Occupational Health contract monthly charges
MOJ,MoJ HQ,18/04/19,5211300000 - EXP - PURCHASE OF GOODS/SERVICES - TRAINING & DEVELOPMENT,10221103 - Equality & Diversity,CHALLENGE CONSULTANCY,107953,"$30,491.40",Unconmciosu Bias training for senior leaders
MOJ,MoJ HQ,09/04/19,5218102002 - EXP - PURCHASE OF GOODS/SERVICES - SUPPORT - APPLICATION MAINTENANCE AND SUPPORT,10223060 - Finance Projects and Service Management,ORACLE CORPORATION U K LTD,1692868,"$1,956,437.49",Oracle Licence Charges for the period Apr 19 to Mar 20
MOJ,MoJ HQ,15/04/19,5218102002 - EXP - PURCHASE OF GOODS/SERVICES - SUPPORT - APPLICATION MAINTENANCE AND SUPPORT,10223060 - Finance Projects and Service Management,ORACLE CORPORATION U K LTD,1692891,"$505,170.17",Oracle Licence Charges for the period Apr 19 to Mar 20
MOJ,MoJ HQ,03/04/19,5218100001 - EXP - PURCHASE OF GOODS/SERVICES - SHARED SERVICES OUTSOURCING,10223060 - Finance Projects and Service Management,SSCL (SHARED SERVICES CONNECTED LTD),100012158,"$62,963.44","SSCL cost to deliver report on Pension scheme costs, etc - for the period Feb 19"
MOJ,MoJ HQ,16/04/19,5218100001 - EXP - PURCHASE OF GOODS/SERVICES - SHARED SERVICES OUTSOURCING,10223060 - Finance Projects and Service Management,SSCL (SHARED SERVICES CONNECTED LTD),100012266,"$274,537.29",Costs to deliver additional recruitment for HMPPS - mainly Prison Officers - for the period Mar 19
MOJ,MoJ HQ,26/04/19,5218102008 - EXP - PURCHASE OF GOODS/SERVICES - SUPPORT - LICENCES,10223060 - Finance Projects and Service Management,SSCL (SHARED SERVICES CONNECTED LTD),100012516,"$1,336,973.82",Oracle Licence Charges for the period Apr 19 to Jun 19
MOJ,MoJ HQ,10/04/19,5218100001 - EXP - PURCHASE OF GOODS/SERVICES - SHARED SERVICES OUTSOURCING,10223060 - Finance Projects and Service Management,BLUE BORDER LTD,MOJ_MARCH_2019-001,"$60,084.18",IT Consultancy for specialist advice - for the period Mar 19
MOJ,MoJ HQ,11/04/19,5218100001 - EXP - PURCHASE OF GOODS/SERVICES - SHARED SERVICES OUTSOURCING,10223065 - SSCL Programme,SSCL (SHARED SERVICES CONNECTED LTD),100011726,"$320,239.25",SSCL Learning & Development Software Changes - Support team costs - for the period Mar 19
MOJ,MoJ HQ,11/04/19,5218100001 - EXP - PURCHASE OF GOODS/SERVICES - SHARED SERVICES OUTSOURCING,10223065 - SSCL Programme,SSCL (SHARED SERVICES CONNECTED LTD),100011728,"$449,695.16",Additional charges due to larger volumes of transactions - for the period Jan 19
MOJ,MoJ HQ,05/04/19,5218100001 - EXP - PURCHASE OF GOODS/SERVICES - SHARED SERVICES OUTSOURCING,10223065 - SSCL Programme,SSCL (SHARED SERVICES CONNECTED LTD),100012160,"$51,915.10",SSCL Learning & Development Software Changes - Support team costs - for the period Mar 19
